fUST/lending_fUST_20251128
["ID","MTS","AMOUNT","RATE_DAILY","PERIOD"]
[394995933,1764283840464,-500.0,0.00010973,2]
[394995935,1764283840474,-500.0,0.00010973,2]
[394995937,1764283840484,-500.0,0.00010973,2]
[394995939,1764283840493,-225.07445679,0.00010973,2]
[394995941,1764283840503,-500.0,0.00010973,2]
[394995943,1764283840512,-263.97152486,0.00010973,2]
[394995945,1764283840522,-500.0,0.00010973,2]
[394995946,1764283840532,-720.0,0.00010993,2]
[394995948,1764283840541,-217.15233878,0.00011096,2]
[394995950,1764283840553,-988.0,0.0001151,2]
[394995952,1764283840565,-2152.0,0.0001151,2]
[394995954,1764283840574,-414.0,0.0001151,2]
[394995956,1764283840584,-204.0,0.00011515,2]
[394995958,1764283840593,-1000.0,0.00011521,2]
[394995960,1764283840602,-1005.28074258,0.00011521,2]
[394995962,1764283840612,-500.0,0.00011521,2]
[394995964,1764283840621,-1000.0,0.00011521,2]
[394995966,1764283840633,-1000.0,0.00011521,2]
[394995968,1764283840643,-176.35237393,0.0001157,2]
[394995970,1764283840652,-353.54508592,0.0001161,2]
[394995972,1764283840662,-160.0,0.0001161,2]
[394995974,1764283840671,-225.18697532,0.00011644,2]
[394995976,1764283840680,-176.17655536,0.00011898,2]
[394995978,1764283840689,-500.0,0.00012068,2]
[394995980,1764283840698,-1500.0,0.00012068,2]
[394995982,1764283840707,-1005.89614439,0.00012068,2]
[394995984,1764283840716,-864.0,0.00012093,2]
[394995986,1764283840725,-233.51889341,0.00012192,2]
[394995988,1764283840735,-176.35818112,0.00012411,2]
[394995990,1764283840744,-214.60439013,0.00012483,2]
[394995992,1764283840753,-2000.0,0.00012616,2]
[394995994,1764283840762,-460.68136759,0.00012692,2]
[394995996,1764283840771,-242.15909246,0.0001274,2]
[394995998,1764283840780,-251.11897888,0.00013288,2]
[394996000,1764283840790,-1000.0,0.00013302,2]
[394996002,1764283840800,-231.0,0.00013515,2]
[394996004,1764283840809,-1000.0,0.00013698,2]
[394996006,1764283840818,-1000.0,0.00013698,2]
[394996008,1764283840827,-500.0,0.00013699,2]
[394996010,1764283840835,-151.98929535,0.00013699,2]
[394996012,1764283840844,-152.75342558,0.00013699,2]
[394996013,1764283840853,-201.26442786,0.00013699,2]
[394996015,1764283840862,-151.45815104,0.00013699,2]
[394996017,1764283840871,-151.0,0.00013699,2]
[394996019,1764283840880,-151.39524175,0.00013699,2]
[394996021,1764283840888,-151.0,0.00013836,2]
[394996023,1764283840897,-260.4103811,0.00013836,2]
[394996025,1764283840906,-500.01,0.00013973,2]
[394996027,1764283840915,-198.0,0.00013973,2]
[394996029,1764283840924,-500.0,0.00014247,2]
[394996031,1764283840933,-270.0455652,0.00014384,2]
[394996033,1764283840942,-414.0,0.0001451,2]
[394996034,1764283840951,-500.0,0.00014521,2]
[394996036,1764283840960,-1000.0,0.00014632,2]
[394996038,1764283840969,-244.0,0.00014632,2]
[394996040,1764283840978,-500.0,0.00014795,2]
[394996042,1764283840987,-280.03725112,0.00014932,2]
[394996044,1764283840996,-500.0,0.00015068,2]
[394996046,1764283841005,-500.0,0.00015342,2]
[394996048,1764283841014,-290.39862941,0.0001548,2]
[394996050,1764283841022,-258.0,0.00015515,2]
[394996052,1764283841032,-595.8577247,0.00015561,2]
[394996054,1764283841042,-500.0,0.00015616,2]
[394996056,1764283841051,-214.60439013,0.00015988,2]
[394996058,1764283841061,-152.00138222,0.00015988,2]
[394996060,1764283841070,-151.0,0.00015988,2]
[394996062,1764283841079,-153.82138668,0.00015988,2]
[394996064,1764283841088,-152.44518229,0.00015988,2]
[394996066,1764283841098,-153.19973971,0.00015988,2]
[394996068,1764283841107,-155.62906489,0.00015988,2]
[394996070,1764283841116,-301.1433787,0.00016028,2]
[394996072,1764283841125,-1000.0,0.00016095,2]
[394996074,1764283841134,-492.0,0.00016095,2]
[394996076,1764283841145,-500.0,0.00016438,2]
[394996078,1764283841154,-595.8577247,0.00016486,2]
[394996080,1764283841163,-595.8577247,0.00016486,2]
[394996082,1764283841173,-595.8577247,0.00016486,2]
[394996084,1764283841182,-157.99079175,0.00016671,2]
[394996086,1764283841191,-1191.7154494,0.00017336,2]
[394996088,1764283841200,-62988.7101894,0.00017447,2]
[394996090,1764283841209,-199.9898153,0.00017447,2]
[394996092,1764283841218,-14054.680992,0.00017447,2]
[394996094,1764283841227,-3136.0232207,0.00017447,2]
[394996096,1764283841236,-414.0,0.0001751,2]
[394996098,1764283841245,-285.0,0.00017515,2]
[394996100,1764283841255,-500.0,0.00017534,2]
[394996102,1764283841264,-156.26580355,0.00017635,2]
[394996104,1764283841273,-1000.0,0.00017705,2]
[394996106,1764283841283,-791.0,0.00017705,2]
[394996108,1764283841291,-460.68136759,0.000178,3]
[394996110,1764283841300,-396.16357097,0.00017844,2]
[394996112,1764283841310,-335.60980925,0.00017846,2]
[394996114,1764283841319,-500.0,0.00018,4]
[394996116,1764283841329,-60877.4629941,0.00018,7]
[394996118,1764283841338,-353.54508592,0.00018,7]
[394996120,1764283841347,-353.54508592,0.00018,7]
[394996122,1764283841357,-1993.405,0.00018,2]
[394996124,1764283841366,-513.939,0.00018,2]
[394996126,1764283841375,-1000.0,0.00018,2]
[394996128,1764283841385,-1000.0,0.00018,2]
[394996130,1764283841394,-1000.0,0.00018,2]
[394996132,1764283841403,-1000.0,0.00018,2]
[394996134,1764283841412,-1000.0,0.00018,2]
[394996136,1764283841421,-1000.0,0.00018,2]
[394996138,1764283841430,-1000.0,0.00018,2]
[394996140,1764283841439,-1000.0,0.00018,2]
[394996141,1764283841448,-1000.0,0.00018,2]
[394996143,1764283841457,-166.571,0.00018,2]
[394996145,1764283841466,-572.1,0.0001863,2]
[394996147,1764283841475,-151.0,0.000188,2]
[394996150,1764283841484,-2374.02781518,0.00018898,2]
[394996151,1764283841493,-500.0,0.00019,10]
[394996153,1764283841503,-4956.81,0.00019178,2]
[394996156,1764283841512,-2551.07,0.00019178,2]
[394996157,1764283841521,-1259.6,0.00019178,2]
[394996159,1764283841530,-997.34,0.00019178,2]
[394996161,1764283841540,-500.0,0.00019178,2]
[394996163,1764283841551,-2817.43,0.00019178,2]
[394996165,1764283841564,-538.23,0.00019178,2]
[394996167,1764283841573,-500.0,0.00019178,2]
[394996169,1764283841582,-500.0,0.00019178,2]
[394996171,1764283841591,-1445.14,0.00019178,2]
[394996173,1764283841601,-500.0,0.00019178,2]
[394996174,1764283841610,-500.0,0.00019178,2]
[394996175,1764283841619,-811.91,0.00019178,2]
[394996176,1764283841629,-2160.21,0.00019178,2]
[394996177,1764283841639,-3898.53,0.00019178,2]
[394996178,1764283841648,-500.0,0.00019178,2]
[394996180,1764283841657,-3533.28,0.00019178,2]
[394996182,1764283841666,-500.0,0.00019178,2]
[394996184,1764283841675,-914.49,0.00019178,2]
[394996186,1764283841684,-500.0768745,0.00019178,2]
[394996188,1764283841693,-3896.64,0.00019178,2]
[394996189,1764283841702,-500.0,0.00019178,2]
[394996191,1764283841711,-500.0,0.00019178,2]
[394996193,1764283841720,-500.0,0.00019178,2]
[394996195,1764283841729,-500.0,0.00019178,2]
[394996197,1764283841737,-500.0,0.00019178,2]
[394996199,1764283841746,-1064.64,0.00019178,2]
[394996201,1764283841755,-500.0,0.00019178,2]
[394996202,1764283841765,-500.0,0.00019178,2]
[394996204,1764283841774,-599.11,0.00019178,2]
[394996206,1764283841782,-987.34,0.00019178,2]
[394996208,1764283841791,-2823.29,0.00019178,2]
[394996210,1764283841800,-500.0,0.00019178,2]
[394996212,1764283841809,-1818.71,0.00019178,2]
[394996214,1764283841819,-1125.97,0.00019178,2]
[394996216,1764283841827,-5948.99,0.00019178,2]
[394996218,1764283841836,-500.0,0.00019178,2]
[394996220,1764283841845,-500.0,0.00019178,2]
[394996222,1764283841855,-500.0,0.00019178,2]
[394996224,1764283841865,-500.0,0.00019178,2]
[394996226,1764283841874,-3571.91,0.00019178,2]
[394996228,1764283841883,-500.0,0.00019178,2]
[394996230,1764283841893,-500.0,0.00019178,2]
[394996232,1764283841902,-1730.24,0.00019178,2]
[394996234,1764283841911,-1515.95,0.00019178,2]
[394996236,1764283841921,-500.0,0.00019178,2]
[394996238,1764283841931,-4956.81,0.00019452,2]
[394996240,1764283841941,-2551.07,0.00019452,2]
[394996242,1764283841950,-1259.6,0.00019452,2]
[394996244,1764283841959,-997.34,0.00019452,2]
[394996246,1764283841969,-500.0,0.00019452,2]
[394996248,1764283841978,-2817.43,0.00019452,2]
[394996250,1764283841987,-538.23,0.00019452,2]
[394996252,1764283841996,-500.0,0.00019452,2]
[394996253,1764283842005,-500.0,0.00019452,2]
[394996254,1764283842014,-1445.14,0.00019452,2]
[394996255,1764283842023,-500.0,0.00019452,2]
[394996256,1764283842032,-500.0,0.00019452,2]
[394996257,1764283842041,-811.91,0.00019452,2]
[394996258,1764283842051,-2160.21,0.00019452,2]
[394996259,1764283842060,-3898.53,0.00019452,2]
[394996260,1764283842070,-500.0,0.00019452,2]
[394996261,1764283842079,-3533.28,0.00019452,2]
[394996271,1764283842249,-500.0,0.00019452,2]
[394996274,1764283842266,-914.49,0.00019452,2]
[394996276,1764283842275,-3896.64,0.00019452,2]
[394996278,1764283842284,-500.0,0.00019452,2]
[394996280,1764283842294,-500.0,0.00019452,2]
[394996282,1764283842303,-500.0,0.00019452,2]
[394996284,1764283842313,-500.0,0.00019452,2]
[394996286,1764283842323,-500.0,0.00019452,2]
[394996287,1764283842332,-1064.64,0.00019452,2]
[394996290,1764283842342,-500.0,0.00019452,2]
[394996292,1764283842351,-500.0,0.00019452,2]
[394996294,1764283842361,-599.11,0.00019452,2]
[394996296,1764283842370,-987.34,0.00019452,2]
[394996298,1764283842380,-2823.29,0.00019452,2]
[394996300,1764283842389,-500.0,0.00019452,2]
[394996301,1764283842398,-1818.71,0.00019452,2]
[394996303,1764283842407,-1125.97,0.00019452,2]
[394996305,1764283842417,-5948.99,0.00019452,2]
[394996307,1764283842427,-500.0,0.00019452,2]
[394996309,1764283842436,-500.0,0.00019452,2]
[394996311,1764283842445,-500.0,0.00019452,2]
[394996313,1764283842455,-500.0,0.00019452,2]
[394996315,1764283842464,-3571.91,0.00019452,2]
[394996317,1764283842474,-500.0,0.00019452,2]
[394996319,1764283842483,-500.0,0.00019452,2]
[394996321,1764283842492,-1730.24,0.00019452,2]
[394996323,1764283842501,-1000.0,0.00019475,10]
[394996325,1764283842510,-1000.0,0.00019475,10]
[394996327,1764283842519,-214.60439013,0.00019494,2]
[394996329,1764283842529,-312.0,0.00019515,2]
[394996331,1764283842538,-641.69507942,0.00019587,2]
[394996333,1764283842548,-14054.6809921,0.00019657,2]
[394996335,1764283842562,-3136.0232205,0.00019657,2]
[394996337,1764283842571,-699.7413634,0.00019657,2]
[394996340,1764283842581,-4956.81,0.00019726,2]
[394996342,1764283842591,-2551.07,0.00019726,2]
[394996344,1764283842604,-1259.6,0.00019726,2]
[394996346,1764283842613,-997.34,0.00019726,2]
[394996348,1764283842623,-500.0,0.00019726,2]
[394996350,1764283842636,-2817.43,0.00019726,2]
[394996352,1764283842646,-538.23,0.00019726,2]
[394996353,1764283842655,-500.0,0.00019726,2]
[394996355,1764283842664,-500.0,0.00019726,2]
[394996357,1764283842674,-1445.14,0.00019726,2]
[394996359,1764283842683,-500.0,0.00019726,2]
[394996362,1764283842693,-500.0,0.00019726,2]
[394996364,1764283842702,-811.91,0.00019726,2]
[394996365,1764283842711,-2160.21,0.00019726,2]
[394996368,1764283842721,-3898.53,0.00019726,2]
[394996370,1764283842730,-500.0,0.00019726,2]
[394996372,1764283842739,-3533.28,0.00019726,2]
[394996374,1764283842749,-500.0,0.00019726,2]
[394996376,1764283842759,-914.49,0.00019726,2]
[394996377,1764283842768,-3896.64,0.00019726,2]
[394996379,1764283842778,-500.0,0.00019726,2]
[394996381,1764283842787,-500.0,0.00019726,2]
[394996383,1764283842796,-500.0,0.00019726,2]
[394996385,1764283842806,-500.0,0.00019726,2]
[394996387,1764283842816,-500.0,0.00019726,2]
[394996389,1764283842825,-1064.64,0.00019726,2]
[394996391,1764283842835,-500.0,0.00019726,2]
[394996393,1764283842844,-500.0,0.00019726,2]
[394996395,1764283842853,-599.11,0.00019726,2]
[394996397,1764283842863,-987.34,0.00019726,2]
[394996399,1764283842872,-2823.29,0.00019726,2]
[394996401,1764283842881,-500.0,0.00019726,2]
[394996403,1764283842891,-1818.71,0.00019726,2]
[394996405,1764283842900,-1125.97,0.00019726,2]
[394996407,1764283842910,-5948.99,0.00019726,2]
[394996409,1764283842919,-500.0,0.00019726,2]
[394996411,1764283842928,-500.0,0.00019726,2]
[394996413,1764283842937,-500.0,0.00019726,2]
[394996415,1764283842946,-500.0,0.00019726,2]
[394996417,1764283842955,-3571.91,0.00019726,2]
[394996419,1764283842965,-557.38922315,0.00019726,2]
[394996421,1764283842974,-500.0,0.00019726,2]
[394996423,1764283842984,-1730.24,0.00019726,2]
[394996425,1764283842993,-197.40065169,0.00019908,2]
[394996427,1764283843002,-499.55491123,0.00019936,2]
[394996429,1764283843011,-160.0,0.0002,7]
[394996431,1764283843021,-150.0,0.0002,10]
[394996433,1764283843030,-294.59918439,0.0002,10]
[394996435,1764283843040,-500.0,0.0002,10]
[394996437,1764283843049,-4956.81,0.0002,2]
[394996439,1764283843059,-2551.07,0.0002,2]
[394996441,1764283843070,-1259.6,0.0002,2]
[394996443,1764283843080,-997.34,0.0002,2]
[394996445,1764283843090,-500.0,0.0002,2]
[394996447,1764283843101,-2817.43,0.0002,2]
[394996449,1764283843111,-538.23,0.0002,2]
[394996451,1764283843121,-500.0,0.0002,2]
[394996453,1764283843131,-500.0,0.0002,2]
[394996455,1764283843140,-1445.14,0.0002,2]
[394996457,1764283843150,-500.0,0.0002,2]
[394996459,1764283843161,-500.0,0.0002,2]
[394996461,1764283843172,-811.91,0.0002,2]
[394996463,1764283843182,-2160.21,0.0002,2]
[394996465,1764283843192,-3898.53,0.0002,2]
[394996467,1764283843201,-500.0,0.0002,2]
[394996469,1764283843211,-3533.28,0.0002,2]
[394996472,1764283843220,-497.63571666,0.0002,2]
[394996473,1764283843230,-914.49,0.0002,2]
[394996476,1764283843239,-3896.64,0.0002,2]
[394996478,1764283843248,-500.0,0.0002,2]
[394996479,1764283843258,-500.0,0.0002,2]
[394996482,1764283843267,-500.18215331,0.0002,2]
[394996483,1764283843276,-500.0,0.0002,2]
[394996485,1764283843285,-500.0,0.0002,2]
[394996488,1764283843295,-1064.64,0.0002,2]
[394996489,1764283843305,-500.0,0.0002,2]
[394996491,1764283843315,-500.0,0.0002,2]
[394996493,1764283843324,-599.11,0.0002,2]
[394996495,1764283843334,-987.34,0.0002,2]
[394996497,1764283843343,-2823.29,0.0002,2]
[394996499,1764283843352,-500.0,0.0002,2]
[394996501,1764283843362,-1818.71,0.0002,2]
[394996504,1764283843379,-1125.97,0.0002,2]
[394996507,1764283843392,-5948.99,0.0002,2]
[394996509,1764283843402,-500.0,0.0002,2]
[394996511,1764283843411,-500.0,0.0002,2]
[394996513,1764283843421,-500.0,0.0002,2]
[394996515,1764283843431,-500.0,0.0002,2]
[394996517,1764283843442,-3571.91,0.0002,2]
[394996519,1764283843451,-221.08666705,0.0002,2]
[394996521,1764283843461,-151.0,0.000201,4]
[394996523,1764283843471,-3136.0232206,0.0002015,2]
[394996525,1764283843481,-699.7413634,0.0002015,2]
[394996527,1764283843490,-156.1334024,0.0002015,2]
[394996530,1764283843500,-922.575467,0.00020187,2]
[394996532,1764283843511,-4956.81,0.00020273,2]
[394996534,1764283843521,-2551.07,0.00020273,2]
[394996536,1764283843531,-1259.6,0.00020273,2]
[394996538,1764283843541,-997.34,0.00020273,2]
[394996540,1764283843551,-377.58879185,0.00020273,2]
[394996542,1764283843565,-2817.43,0.00020273,2]
[394996544,1764283843576,-538.23,0.00020273,2]
[394996546,1764283843586,-500.0,0.00020273,2]
[394996548,1764283843596,-500.0,0.00020273,2]
[394996550,1764283843608,-500.0,0.00020273,2]
[394996552,1764283843618,-1445.14,0.00020273,2]
[394996554,1764283843628,-500.0,0.00020273,2]
[394996556,1764283843640,-811.91,0.00020273,2]
[394996559,1764283843650,-2160.21,0.00020273,2]
[394996561,1764283843661,-3898.53,0.00020273,2]
[394996563,1764283843671,-500.0,0.00020273,2]
[394996565,1764283843681,-3533.28,0.00020273,2]
[394996567,1764283843691,-914.49,0.00020273,2]
[394996569,1764283843702,-3896.64,0.00020273,2]
[394996571,1764283843712,-500.0,0.00020273,2]
[394996573,1764283843723,-500.0,0.00020273,2]
[394996575,1764283843733,-500.0,0.00020273,2]
[394996578,1764283843743,-500.0,0.00020273,2]
[394996580,1764283843753,-1064.64,0.00020273,2]
[394996582,1764283843763,-500.0,0.00020273,2]
[394996584,1764283843773,-500.0,0.00020273,2]
[394996586,1764283843783,-599.11,0.00020273,2]
[394996588,1764283843792,-987.34,0.00020273,2]
[394996590,1764283843802,-2823.29,0.00020273,2]
[394996592,1764283843812,-500.0,0.00020273,2]
[394996594,1764283843822,-1818.71,0.00020273,2]
[394996596,1764283843831,-1125.97,0.00020273,2]
[394996598,1764283843840,-5948.99,0.00020273,2]
[394996600,1764283843850,-500.0,0.00020273,2]
[394996602,1764283843860,-500.0,0.00020273,2]
[394996604,1764283843870,-516.89411536,0.00020273,2]
[394996606,1764283843884,-500.0,0.00020273,2]
[394996608,1764283843895,-3571.91,0.00020273,2]
[394996610,1764283843905,-460.68136759,0.00020331,2]
[394996613,1764283843915,-414.0,0.0002051,2]
[394996615,1764283843926,-1191.5517742,0.00020518,2]
[394996617,1764283843936,-4956.81,0.00020547,2]
[394996619,1764283843946,-2551.07,0.00020547,2]
[394996621,1764283843956,-1259.6,0.00020547,2]
[394996623,1764283843966,-997.34,0.00020547,2]
[394996625,1764283843976,-2817.43,0.00020547,2]
[394996627,1764283843986,-538.23,0.00020547,2]
[394996629,1764283843996,-500.0,0.00020547,2]
[394996631,1764283844006,-500.0,0.00020547,2]
[394996633,1764283844015,-1445.14,0.00020547,2]
[394996635,1764283844025,-500.0,0.00020547,2]
[394996638,1764283844035,-500.0,0.00020547,2]
[394996640,1764283844045,-811.91,0.00020547,2]
[394996642,1764283844055,-2160.21,0.00020547,2]
[394996644,1764283844066,-3898.53,0.00020547,2]
[394996646,1764283844077,-500.0,0.00020547,2]
[394996648,1764283844087,-3533.28,0.00020547,2]
[394996650,1764283844097,-914.49,0.00020547,2]
[394996652,1764283844107,-3896.64,0.00020547,2]
[394996654,1764283844117,-500.0,0.00020547,2]
[394996656,1764283844127,-500.0,0.00020547,2]
[394996658,1764283844138,-500.0,0.00020547,2]
[394996660,1764283844148,-500.0,0.00020547,2]
[394996662,1764283844159,-1064.64,0.00020547,2]
[394996664,1764283844169,-500.0,0.00020547,2]
[394996666,1764283844179,-500.0,0.00020547,2]
[394996669,1764283844190,-599.11,0.00020547,2]
[394996671,1764283844200,-987.34,0.00020547,2]
[394996673,1764283844210,-2823.29,0.00020547,2]
[394996675,1764283844219,-500.0,0.00020547,2]
[394996677,1764283844229,-1818.71,0.00020547,2]
[394996679,1764283844239,-1125.97,0.00020547,2]
[394996681,1764283844248,-5948.99,0.00020547,2]
[394996683,1764283844257,-500.0,0.00020547,2]
[394996685,1764283844267,-500.0,0.00020547,2]
[394996687,1764283844276,-500.0,0.00020547,2]
[394996689,1764283844286,-3571.91,0.00020547,2]
[394996691,1764283844295,-500.0,0.00020618,2]
[394996693,1764283844305,-4956.81,0.00020821,2]
[394996695,1764283844314,-2551.07,0.00020821,2]
[394996697,1764283844324,-1259.6,0.00020821,2]
[394996699,1764283844334,-997.34,0.00020821,2]
[394996701,1764283844343,-2817.43,0.00020821,2]
[394996702,1764283844353,-538.23,0.00020821,2]
[394996704,1764283844363,-500.0,0.00020821,2]
[394996706,1764283844372,-500.0,0.00020821,2]
[394996708,1764283844386,-1445.14,0.00020821,2]
[394996711,1764283844396,-500.0,0.00020821,2]
[394996713,1764283844406,-500.0,0.00020821,2]
[394996715,1764283844416,-811.91,0.00020821,2]
[394996717,1764283844426,-2160.21,0.00020821,2]
[394996719,1764283844436,-3898.53,0.00020821,2]
[394996721,1764283844446,-500.0,0.00020821,2]
[394996723,1764283844456,-3533.28,0.00020821,2]
[394996725,1764283844465,-914.49,0.00020821,2]
[394996727,1764283844475,-3896.64,0.00020821,2]
[394996729,1764283844485,-500.0,0.00020821,2]
[394996731,1764283844495,-500.0,0.00020821,2]
[394996732,1764283844505,-500.0,0.00020821,2]
[394996733,1764283844515,-500.0,0.00020821,2]
[394996740,1764283844892,-1064.64,0.00020821,2]
[394996741,1764283844947,-500.0,0.00020821,2]
[394996742,1764283844957,-500.0,0.00020821,2]
[394996743,1764283844967,-599.11,0.00020821,2]
[394996744,1764283844976,-987.34,0.00020821,2]
[394996745,1764283844986,-2823.29,0.00020821,2]
[394996746,1764283844995,-500.0,0.00020821,2]
[394996747,1764283845004,-1818.71,0.00020821,2]
[394996748,1764283845014,-1125.97,0.00020821,2]
[394996749,1764283845023,-5948.99,0.00020821,2]
[394996750,1764283845032,-374.63632758,0.00020821,2]
[394996751,1764283845043,-500.0,0.00020821,2]
[394996752,1764283845053,-500.0,0.00020821,2]
[394996753,1764283845063,-3571.91,0.00020821,2]
[394996754,1764283845072,-150.0,0.00021,2]
[394996755,1764283845082,-4956.81,0.00021095,2]
[394996756,1764283845091,-2551.07,0.00021095,2]
[394996757,1764283845101,-1259.6,0.00021095,2]
[394996758,1764283845110,-997.34,0.00021095,2]
[394996759,1764283845120,-2817.43,0.00021095,2]
[394996760,1764283845130,-538.23,0.00021095,2]
[394996761,1764283845139,-500.0,0.00021095,2]
[394996762,1764283845149,-500.0,0.00021095,2]
[394996763,1764283845159,-1445.14,0.00021095,2]
[394996764,1764283845169,-500.0,0.00021095,2]
[394996765,1764283845179,-500.0,0.00021095,2]
[394996766,1764283845189,-811.91,0.00021095,2]
[394996768,1764283845198,-2160.21,0.00021095,2]
[394996769,1764283845208,-3898.53,0.00021095,2]
[394996770,1764283845218,-500.0,0.00021095,2]
[394996771,1764283845227,-3533.28,0.00021095,2]
[394996772,1764283845237,-914.49,0.00021095,2]
[394996773,1764283845247,-3896.64,0.00021095,2]
[394996774,1764283845258,-500.0,0.00021095,2]
[394996775,1764283845268,-500.0,0.00021095,2]
[394996776,1764283845285,-500.0,0.00021095,2]
[394996777,1764283845300,-292.77878052,0.00021095,2]
[394996778,1764283845311,-1064.64,0.00021095,2]
[394996779,1764283845321,-500.0,0.00021095,2]
[394996780,1764283845331,-500.0,0.00021095,2]
[394996781,1764283845342,-599.11,0.00021095,2]
[394996782,1764283845352,-987.34,0.00021095,2]
[394996783,1764283845363,-2823.29,0.00021095,2]
[394996784,1764283845373,-500.0,0.00021095,2]
[394996785,1764283845383,-1818.71,0.00021095,2]
[394996786,1764283845393,-1125.97,0.00021095,2]
[394996787,1764283845403,-5948.99,0.00021095,2]
[394996788,1764283845412,-500.0,0.00021095,2]
[394996789,1764283845423,-500.0,0.00021095,2]
[394996790,1764283845433,-3571.91,0.00021095,2]
[394996791,1764283845444,-4956.81,0.00021369,2]
[394996792,1764283845454,-2551.07,0.00021369,2]
[394996793,1764283845465,-1259.6,0.00021369,2]
[394996794,1764283845475,-997.34,0.00021369,2]
[394996795,1764283845486,-2817.43,0.00021369,2]
[394996796,1764283845497,-538.23,0.00021369,2]
[394996797,1764283845507,-500.0,0.00021369,2]
[394996798,1764283845518,-228.12061035,0.00021369,2]
[394996799,1764283845529,-1445.14,0.00021369,2]
[394996800,1764283845540,-500.0,0.00021369,2]
[394996801,1764283845550,-500.0,0.00021369,2]
[394996804,1764283845564,-811.91,0.00021369,2]
[394996805,1764283845575,-2160.21,0.00021369,2]
[394996806,1764283845584,-3898.53,0.00021369,2]
[394996807,1764283845594,-500.0,0.00021369,2]
[394996808,1764283845606,-3533.28,0.00021369,2]
[394996809,1764283845616,-914.49,0.00021369,2]
[394996810,1764283845626,-3896.64,0.00021369,2]
[394996811,1764283845636,-500.0,0.00021369,2]
[394996812,1764283845647,-500.0,0.00021369,2]
[394996813,1764283845656,-339.84821655,0.00021369,2]
[394996814,1764283845666,-1064.64,0.00021369,2]
[394996815,1764283845675,-217.1999737,0.00021369,2]
[394996816,1764283845686,-237.24,0.00021369,2]
[394996817,1764283845696,-599.11,0.00021369,2]
[394996818,1764283845705,-987.34,0.00021369,2]
[394996819,1764283845715,-2823.29,0.00021369,2]
[394996820,1764283845724,-500.0,0.00021369,2]
[394996821,1764283845734,-1818.71,0.00021369,2]
[394996822,1764283845744,-1125.97,0.00021369,2]
[394996823,1764283845754,-5948.99,0.00021369,2]
[394996824,1764283845763,-500.0,0.00021369,2]
[394996825,1764283845773,-500.0,0.00021369,2]
[394996826,1764283845784,-3571.91,0.00021369,2]
[394996827,1764283845794,-151.0,0.000214,3]
[394996828,1764283845804,-1000.0,0.00021423,10]
[394996829,1764283845814,-1000.0,0.00021423,10]
[394996830,1764283845824,-579.0,0.00021423,10]
[394996831,1764283845834,-339.0,0.00021515,2]
[394996832,1764283845844,-4956.81,0.00021643,2]
[394996833,1764283845854,-2551.07,0.00021643,2]
[394996834,1764283845864,-1259.6,0.00021643,2]
[394996836,1764283845874,-997.34,0.00021643,2]
[394996837,1764283845884,-2817.43,0.00021643,2]
[394996838,1764283845893,-538.23,0.00021643,2]
[394996839,1764283845903,-500.0,0.00021643,2]